fUST/lending_fUST_20250726
["ID","MTS","AMOUNT","RATE_DAILY","PERIOD"]
[374964968,1753483839508,-36.53533813,0.00023013,2]
[374964970,1753483839520,-646.86466187,0.00023013,2]
[374964972,1753483839530,-460.0,0.00023013,2]
[374964974,1753483839539,-460.0,0.00023013,2]
[374964977,1753483839549,-295.13533813,0.00023013,2]
[374964981,1753483839561,-164.86466187,0.00023013,2]
[374964982,1753483839570,-460.0,0.00023013,2]
[374964984,1753483839579,-1472.23,0.00023013,2]
[374964986,1753483839589,-223.0315306,0.00023015,2]
[374964988,1753483839598,-587.77,0.00023141,5]
[374964991,1753483839607,-587.78,0.00023241,2]
[374964993,1753483839616,-683.4,0.00023287,2]
[374964995,1753483839625,-460.0,0.00023287,2]
[374964997,1753483839635,-460.0,0.00023287,2]
[374964999,1753483839644,-569.46,0.00023287,2]
[374965001,1753483839654,-406.4,0.00023287,2]
[374965003,1753483839662,-1472.23,0.00023287,2]
[374965005,1753483839671,-168.0,0.00023407,2]
[374965007,1753483839681,-168.0,0.00023474,2]
[374965008,1753483839690,-648.0,0.0002354,2]
[374965009,1753483839699,-2157.0,0.0002354,2]
[374965010,1753483839708,-420.288,0.0002354,2]
[374965011,1753483839718,-114.04481875,0.0002354,2]
[374965012,1753483839732,-854.95518125,0.0002354,2]
[374965013,1753483839741,-200.0,0.00023561,2]
[374965015,1753483839751,-683.4,0.00023561,2]
[374965017,1753483839760,-460.0,0.00023561,2]
[374965019,1753483839770,-460.0,0.00023561,2]
[374965021,1753483839779,-1472.23,0.00023561,2]
[374965022,1753483839788,-168.0,0.00023657,2]
[374965024,1753483839797,-168.0,0.00023678,2]
[374965026,1753483839807,-327.69,0.000238,2]
[374965028,1753483839816,-168.0,0.00023833,2]
[374965030,1753483839825,-683.4,0.00023835,2]
[374965043,1753483839939,-460.0,0.00023835,2]
[374965045,1753483839951,-246.1113152,0.00023835,2]
[374965047,1753483839965,-1472.23,0.00023835,2]
[374965049,1753483839974,-353.99323984,0.000239,2]
[374965051,1753483839984,-501.6433077,0.00023945,2]
[374965053,1753483839993,-429.8269109,0.00023945,2]
[374965055,1753483840003,-429.8269109,0.00023945,2]
[374965057,1753483840012,-168.0,0.00023981,2]
[374965059,1753483840021,-160.0,0.00024,7]
[374965061,1753483840030,-352.56,0.00024,7]
[374965062,1753483840040,-583.35,0.00024002,2]
[374965063,1753483840049,-500.0,0.00024085,2]
[374965064,1753483840059,-683.4,0.00024109,2]
[374965065,1753483840068,-505.97,0.00024109,2]
[374965066,1753483840077,-1472.23,0.00024109,2]
[374965067,1753483840087,-168.0,0.00024297,2]
[374965068,1753483840096,-683.4,0.00024383,2]
[374965069,1753483840106,-1472.23,0.00024383,2]
[374965070,1753483840116,-231.28369723,0.00024384,2]
[374965072,1753483840126,-180.952288,0.0002439,8]
[374965073,1753483840136,-168.0,0.00024538,2]
[374965074,1753483840145,-250.0,0.00024632,2]
[374965075,1753483840154,-683.4,0.00024657,2]
[374965076,1753483840164,-1472.23,0.00024657,2]
[374965077,1753483840173,-168.0,0.00024674,2]
[374965078,1753483840182,-643.0,0.000247,2]
[374965079,1753483840191,-168.0,0.00024715,2]
[374965080,1753483840199,-800.0,0.00024769,2]
[374965081,1753483840208,-800.0,0.0002477,2]
[374965082,1753483840217,-164.63890179,0.00024788,2]
[374965083,1753483840226,-1825.74502575,0.00024788,2]
[374965084,1753483840235,-164.63890179,0.00024792,2]
[374965085,1753483840244,-164.63890179,0.00024796,2]
[374965086,1753483840253,-152.687407,0.000248,15]
[374965087,1753483840262,-164.63890179,0.000248,2]
[374965088,1753483840270,-150.0,0.00024873,2]
[374965089,1753483840281,-500.0,0.00024873,2]
[374965090,1753483840290,-152.687407,0.0002488,6]
[374965091,1753483840299,-4691.145667,0.00024888,2]
[374965092,1753483840355,-68281.23630634,0.00024888,2]
[374965298,1753483842987,-459.2,0.00024878,10]
[374965300,1753483842997,-86340.14925726,0.00024888,2]
[374965584,1753483845938,-665.27100351,0.00024888,2]
[374975547,1753484071983,200.0,0.00026059,120]
[374975548,1753484132287,200.0,0.00027338,120]
[374975549,1753484191772,200.0,0.00025448,120]
[374975550,1753484230619,174.001958,0.00019259,120]
[374975551,1753484251097,200.0,0.0002535,120]
[374975553,1753484311711,200.0,0.00025099,120]
[374975554,1753484312529,160.108082,0.00013699,2]
[374975555,1753484370773,200.0,0.0002607,120]
[374975556,1753484395642,-1200.0,0.00019177,2]
[374975557,1753484395667,-748.19,0.00019178,2]
[374975558,1753484395691,-460.0,0.00019178,2]
[374975559,1753484395712,-829.95,0.00019178,2]
[374975560,1753484395736,-460.0,0.00019178,2]
[374975561,1753484395759,-460.0,0.00019178,2]
[374975562,1753484395781,-460.0,0.00019178,2]
[374975563,1753484395803,-460.0,0.00019178,2]
[374975564,1753484395825,-460.0,0.00019178,2]
[374975565,1753484395847,-81.86,0.00019178,2]
[374975570,1753484663338,-4145.0,0.00018697,2]
[374975618,1753485032266,-39.3332438,0.00018697,2]
[374975659,1753485032779,-795.37,0.00019178,2]
[374975661,1753485032789,-460.0,0.00019178,2]
[374975663,1753485032798,-460.0,0.00019178,2]
[374975665,1753485032808,-460.0,0.00019178,2]
[374975667,1753485032817,-174.001958,0.00019259,2]
[374975669,1753485032827,-312.16666667,0.00019429,2]
[374975671,1753485032836,-460.0,0.00019445,2]
[374975673,1753485032847,-460.0,0.00019446,2]
[374975674,1753485032857,-460.0,0.00019446,2]
[374975675,1753485032866,-460.0,0.00019446,2]
[374975676,1753485032876,-465.14027417,0.00019446,2]
[374975677,1753485032890,-6.94321087,0.00019446,2]
[374975679,1753485032902,-370.33956703,0.00019446,2]
[374976078,1753485038169,-82.7172221,0.00019446,2]
[374976080,1753485038179,-460.0,0.00019446,2]
[374976082,1753485038188,-7068.7597324,0.00019446,2]
[374976085,1753485038200,-12086.10588715,0.00019446,2]
[374976087,1753485038210,-460.0,0.00019451,2]
[374976089,1753485038219,-717.01,0.00019451,2]
[374976091,1753485038228,-460.0,0.00019451,2]
[374976093,1753485038238,-795.37,0.00019452,2]
[374976095,1753485038247,-460.0,0.00019452,2]
[374976097,1753485038256,-460.0,0.00019452,2]
[374976098,1753485038265,-460.0,0.00019452,2]
[374976100,1753485038275,-460.0,0.00019719,2]
[374976102,1753485038284,-460.0,0.0001972,2]
[374976104,1753485038294,-460.0,0.00019725,2]
[374976106,1753485038303,-717.01,0.00019725,2]
[374976108,1753485038312,-460.0,0.00019725,2]
[374976109,1753485038321,-795.37,0.00019726,2]
[374976111,1753485038331,-460.0,0.00019726,2]
[374976112,1753485038340,-460.0,0.00019726,2]
[374976113,1753485038351,-460.0,0.00019726,2]
[374976114,1753485038361,-377.09501652,0.00019993,2]
[374976115,1753485038371,-467.06,0.00019994,2]
[374976116,1753485038383,-460.0,0.00019999,2]
[374976117,1753485038394,-717.01,0.00019999,2]
[374976118,1753485038404,-402.16,0.00019999,2]
[374976119,1753485038414,-795.37,0.0002,2]
[374976120,1753485038423,-460.0,0.0002,2]
[374976121,1753485038433,-460.0,0.0002,2]
[374976122,1753485038442,-460.0,0.0002,2]
[374976123,1753485038452,-194.01,0.00020142,2]
[374976124,1753485038461,-780.80168607,0.00020272,2]
[374976125,1753485038472,-795.37,0.00020273,2]
[374976126,1753485038481,-460.0,0.00020273,2]
[374976127,1753485038491,-460.0,0.00020273,2]
[374976128,1753485038504,-460.0,0.00020273,2]
[374976129,1753485038518,-717.01,0.00020273,2]
[374976130,1753485038528,-460.0,0.00020273,2]
[374976131,1753485038538,-471.14584976,0.00020545,2]
[374976132,1753485038547,-500.0,0.00020545,2]
[374976133,1753485038557,-407.90976052,0.00020545,2]
[374976134,1753485038569,-92.09023948,0.00020545,2]
[374976135,1753485038579,-500.0,0.00020545,2]
[374976136,1753485038589,-500.0,0.00020545,2]
[374976137,1753485038600,-500.0,0.00020545,2]
[374976138,1753485038609,-500.0,0.00020545,2]
[374976139,1753485038619,-174.06416626,0.00020545,2]
[374976140,1753485038628,-531.89306637,0.00020545,2]
[374976141,1753485038638,-640.25,0.00020545,2]
[374976142,1753485038648,-500.0,0.00020545,2]
[374976143,1753485038658,-338.68807974,0.00020545,2]
[374976144,1753485038667,-500.0,0.00020545,2]
[374976145,1753485038677,-500.0,0.00020545,2]
[374976146,1753485038686,-500.0,0.00020545,2]
[374976147,1753485038695,-500.0,0.00020545,2]
[374976148,1753485038704,-500.0,0.00020545,2]
[374976149,1753485038713,-500.0,0.00020545,2]
[374976150,1753485038724,-500.0,0.00020545,2]
[374976151,1753485038734,-500.0,0.00020545,2]
[374976152,1753485038743,-500.0,0.00020545,2]
[374976153,1753485038753,-500.0,0.00020545,2]
[374976154,1753485038763,-500.0,0.00020545,2]
[374976155,1753485038772,-336.85013035,0.00020545,2]
[374976156,1753485038782,-500.0,0.00020545,2]
[374976157,1753485038791,-500.0,0.00020545,2]
[374976158,1753485038801,-500.0,0.00020545,2]
[374976159,1753485038811,-500.0,0.00020545,2]
[374976160,1753485038822,-500.0,0.00020545,2]
[374976161,1753485038833,-500.0,0.00020545,2]
[374976162,1753485038845,-500.0,0.00020545,2]
[374976163,1753485038854,-500.0,0.00020545,2]
[374976164,1753485038863,-500.0,0.00020545,2]
[374976165,1753485038873,-500.0,0.00020545,2]
[374976166,1753485038883,-500.0,0.00020545,2]
[374976167,1753485038895,-795.37,0.00020547,2]
[374976168,1753485038905,-525.07418488,0.00020547,2]
[374976169,1753485038915,-460.0,0.00020547,2]
[374976170,1753485038924,-460.0,0.00020547,2]
[374976171,1753485038935,-717.01,0.00020547,2]
[374976172,1753485038945,-460.0,0.00020547,2]
[374976173,1753485038955,-500.0,0.00020547,2]
[374976174,1753485038966,-795.37,0.00020821,2]
[374976175,1753485038975,-460.0,0.00020821,2]
[374976176,1753485038986,-460.0,0.00020821,2]
[374976177,1753485038995,-717.01,0.00020821,2]
[374976178,1753485039006,-460.0,0.00020821,2]
[374976179,1753485039016,-500.0,0.00020821,2]
[374976180,1753485039026,-214.7599002,0.0002105,2]
[374976181,1753485039035,-160.0,0.0002105,2]
[374976182,1753485039046,-7410.95565809,0.0002105,2]
[374976183,1753485039059,-2260.17805655,0.0002105,2]
[374976184,1753485039070,-580.51443761,0.0002105,2]
[374976185,1753485039081,-418.70153219,0.0002105,2]
[374976186,1753485039093,-1956.89167966,0.0002105,2]
[374976187,1753485039102,-795.37,0.00021095,2]
[374976188,1753485039112,-460.0,0.00021095,2]
[374976189,1753485039122,-460.0,0.00021095,2]
[374976190,1753485039132,-717.01,0.00021095,2]
[374976191,1753485039142,-270.725,0.00021214,2]
[374976192,1753485039152,-215.0738,0.00021302,2]
[374976193,1753485039162,-795.37,0.00021369,2]
[374976194,1753485039171,-460.0,0.00021369,2]
[374976195,1753485039181,-460.0,0.00021369,2]
[374976196,1753485039191,-717.01,0.00021369,2]
[374976197,1753485039200,-160.108082,0.00021404,2]
[374976198,1753485039210,-795.37,0.00021643,2]
[374976199,1753485039220,-460.0,0.00021643,2]
[374976200,1753485039229,-460.0,0.00021643,2]
[374976201,1753485039238,-717.01,0.00021643,2]
[374976202,1753485039248,-99.62303834,0.00021917,2]
[374976203,1753485039260,-695.74696166,0.00021917,2]
[374976204,1753485039270,-460.0,0.00021917,2]
[374976205,1753485039280,-460.0,0.00021917,2]
[374976206,1753485039290,-717.01,0.00021917,2]
[374976207,1753485039299,-388.02,0.00021973,2]
[374976208,1753485039309,-153.0,0.00022161,2]
[374976209,1753485039318,-153.0,0.00022167,2]
[374976210,1753485039328,-153.0,0.00022168,2]
[374976211,1753485039337,-153.0,0.00022174,2]
[374976212,1753485039349,-153.0,0.00022174,2]
[374976213,1753485039358,-795.37,0.00022191,2]
[374976214,1753485039368,-460.0,0.00022191,2]
[374976215,1753485039378,-460.0,0.00022191,2]
[374976216,1753485039388,-717.01,0.00022191,2]
[374976217,1753485039397,-795.37,0.00022465,2]
[374976218,1753485039407,-460.0,0.00022465,2]
[374976219,1753485039416,-460.0,0.00022465,2]
[374976220,1753485039426,-717.01,0.00022465,2]
[374976221,1753485039436,-223.0315306,0.00022671,2]
[374976222,1753485039445,-1332.43,0.00022738,2]
[374976223,1753485039455,-795.37,0.00022739,2]
[374976224,1753485039464,-420.56820256,0.00022739,2]
[374976228,1753485040277,-12.6826976,0.00022739,2]
[374976230,1753485040287,-460.0,0.00022739,2]
[374976232,1753485040296,-74.11902089,0.00022739,2]
[374976234,1753485040308,-428.0,0.00022739,2]
[374976236,1753485040320,-214.89097911,0.00022739,2]
[374976238,1753485040329,-3000.0,0.000229,2]
[374976240,1753485040339,-239.67922192,0.00022999,2]
[374976242,1753485040349,-795.37,0.00023013,2]
[374976244,1753485040358,-460.0,0.00023013,2]
[374976246,1753485040368,-717.01,0.00023013,2]
[374976248,1753485040378,-653.18,0.00023133,5]
[374976250,1753485040387,-206.0,0.0002322,2]
[374976252,1753485040396,-653.18,0.00023233,3]
[374976254,1753485040405,-795.37,0.00023287,2]
[374976256,1753485040415,-460.0,0.00023287,2]
[374976258,1753485040424,-717.01,0.00023287,2]
[374976260,1753485040433,-653.2097746,0.00023333,5]
[374976262,1753485040442,-206.0,0.000235,2]
[374976264,1753485040451,-648.0,0.0002354,2]
[374976265,1753485040461,-2157.0,0.0002354,2]
[374976267,1753485040470,-969.0,0.0002354,2]
[374976269,1753485040479,-795.37,0.00023561,2]
[374976271,1753485040489,-200.0,0.00023561,2]
[374976274,1753485040498,-200.0,0.00023561,2]
[374976275,1753485040507,-285.44,0.00023561,2]
[374976277,1753485040517,-460.0,0.00023561,2]
[374976278,1753485040527,-717.01,0.00023561,2]
[374976279,1753485040537,-206.0,0.0002378,2]
[374976281,1753485040547,-294.92,0.000238,2]
[374976282,1753485040557,-582.03,0.00023804,2]
[374976283,1753485040566,-795.37,0.00023835,2]
[374976284,1753485040577,-460.0,0.00023835,2]
[374976285,1753485040586,-717.01,0.00023835,2]
[374976286,1753485040596,-151.0,0.00023848,6]
[374976287,1753485040606,-168.0,0.00023999,2]
[374976289,1753485040616,-231.28369723,0.0002404,2]
[374976291,1753485040626,-206.0,0.0002406,2]
[374976293,1753485040635,-500.0,0.00024095,2]
[374976295,1753485040645,-795.37,0.00024109,2]
[374976297,1753485040655,-460.0,0.00024109,2]
[374976299,1753485040664,-717.01,0.00024109,2]
[374976300,1753485040674,-151.0,0.00024111,6]
[374976301,1753485040684,-206.0,0.0002434,2]
[374976302,1753485040694,-151.0,0.00024374,6]
[374976303,1753485040703,-795.37,0.00024383,2]
[374976304,1753485040713,-553.28658173,0.00024383,2]
[374976305,1753485040723,-717.01,0.00024383,2]
[374976306,1753485040733,-499.3,0.00024429,2]
[374976307,1753485040743,-500.0,0.00024511,2]
[374976308,1753485040752,-500.0,0.00024541,2]
[374976309,1753485040762,-153.938571,0.00024563,5]
[374976310,1753485040772,-500.0,0.00024568,2]
[374976311,1753485040782,-153.938571,0.00024578,6]
[374976312,1753485040792,-500.0,0.00024593,2]
[374976313,1753485040801,-500.0,0.00024619,2]
[374976314,1753485040811,-206.0,0.0002462,2]
[374976315,1753485040821,-153.938571,0.00024625,4]
[374976316,1753485040830,-151.0,0.00024637,7]
[374976317,1753485040839,-795.37,0.00024657,2]
[374976318,1753485040850,-717.01,0.00024657,2]
[374976319,1753485040860,-288.4018828,0.00024658,2]
[374976320,1753485040870,-2000.0,0.000248,2]
[374976321,1753485040879,-153.938571,0.000248,15]
[374976322,1753485040894,-153.938571,0.000248,15]
[374976323,1753485040904,-4208.37744361,0.00024828,2]
[374976324,1753485040914,-229.841888,0.00024877,8]
[374976325,1753485040924,-153.938571,0.0002488,6]
[374976326,1753485040934,-68897.54788995,0.00024888,2]
[374976478,1753485043103,-4982.83080998,0.00024888,2]
[374976480,1753485043113,-1347.76416236,0.00024888,2]
[374976482,1753485043125,-6300.85786476,0.00024888,2]
[374976484,1753485043134,-289.85770065,0.00024888,2]
[374976486,1753485043144,-216.14992921,0.00024899,2]
[374976488,1753485043153,-808.611,0.00024899,2]
[374976490,1753485043162,-2200.0,0.00024899,2]
[374976492,1753485043171,-1768.714492,0.000249,2]
[374976494,1753485043181,-160.0,0.000249,7]
[374976496,1753485043190,-215.93003454,0.000249,7]
[374976498,1753485043199,-381.82,0.000249,7]
[374976500,1753485043208,-206.0,0.000249,2]
[374976502,1753485043218,-151.0,0.000249,7]
[374976504,1753485043227,-153.938571,0.000249,5]
[374976506,1753485043237,-153.938571,0.000249,4]
[374976508,1753485043246,-1672.333164,0.000249,7]
[374976510,1753485043256,-151.0,0.000249,7]
[374976512,1753485043265,-151.0,0.000249,7]
[374976514,1753485043274,-151.0,0.000249,7]
[374976515,1753485043283,-151.0,0.000249,7]
[374976517,1753485043292,-151.0,0.000249,7]
[374976519,1753485043302,-151.0,0.000249,2]
[374976521,1753485043311,-151.0,0.000249,7]
[374976525,1753485043331,-151.0,0.000249,7]
[374976527,1753485043342,-81806.09011561,0.000249,2]
[374976529,1753485043356,-2314.88735633,0.000249,2]
[374976775,1753485046064,-1503.14143,0.000249,2]
[374976779,1753485046099,-349.75517299,0.000249,2]
[374976785,1753485046145,-4153.84210776,0.000249,2]
[374976787,1753485046157,-1188.63002315,0.000249,2]
[374976790,1753485046169,-2162.53910812,0.000249,2]
[374976792,1753485046181,-333.67086873,0.000249,2]
[374976794,1753485046192,-37776.22416493,0.000249,2]
[374976811,1753485046344,-0.55589366,0.000249,2]
[374976813,1753485046356,-3050.12,0.000249,2]
[374977573,1753485383849,-1002.0,0.00018779,2]
[374977575,1753485511700,160.108082,0.00013699,2]
[374977577,1753485642353,-300.7797852,0.00018443,2]
[374977578,1753485642878,-11.2202148,0.00018779,2]
[374977582,1753485980197,-87.3023677,0.00018779,2]
[374977583,1753485980219,-168.247473,0.00019251,2]
[374977584,1753485980243,-312.16666667,0.00019429,2]
[374977585,1753485980264,-425.0,0.00019444,2]
[374977586,1753485980289,-460.0,0.00019444,2]
[374977587,1753485980311,-4000.03342279,0.00019445,2]
[374977588,1753485980332,-461.22862324,0.00019445,2]
[374977589,1753485980354,-460.0,0.00019445,2]
[374977590,1753485980376,-460.0,0.00019445,2]
[374977591,1753485980399,-460.0,0.00019445,2]
[374977592,1753485980421,-460.0,0.00019445,2]
[374977593,1753485980442,-460.0,0.00019445,2]
[374977594,1753485980464,-460.0,0.00019445,2]
[374977595,1753485980487,-460.0,0.00019445,2]
[374977596,1753485980507,-484.37888187,0.00019445,2]
[374977597,1753485980660,-460.0,0.00019445,2]
[374977598,1753485980689,-460.0,0.00019445,2]
[374977599,1753485980710,-460.0,0.00019445,2]
[374977600,1753485980731,-460.0,0.00019445,2]
[374977601,1753485980753,-460.0,0.00019445,2]
[374977602,1753485980775,-460.0,0.00019445,2]
[374977603,1753485980800,-460.0,0.00019445,2]
[374977604,1753485980823,-460.0,0.00019445,2]
[374977605,1753485980845,-460.0,0.00019445,2]
[374977606,1753485980867,-460.0,0.00019445,2]
[374977607,1753485980889,-460.0,0.00019445,2]
[374977608,1753485980912,-460.0,0.00019445,2]
[374977609,1753485980934,-460.0,0.00019445,2]
[374977610,1753485980956,-460.0,0.00019445,2]
[374977611,1753485980979,-460.0,0.00019445,2]
[374977612,1753485981004,-424.74,0.00019445,2]
[374977613,1753485981026,-460.0,0.00019445,2]
[374977614,1753485981048,-460.0,0.00019445,2]
[374977615,1753485981070,-136.90256473,0.00019445,2]
[374977667,1753486232407,-546.50562813,0.000189,2]
[374977669,1753486232419,-40.75187484,0.000189,2]
[374977671,1753486232429,-342.00049948,0.00019368,2]
[374977673,1753486232439,-312.16666667,0.00019442,2]
[374977675,1753486232448,-244.12,0.00019443,2]
[374977677,1753486232458,-460.0,0.00019444,2]
[374977678,1753486232467,-460.0,0.00019444,2]
[374977681,1753486232477,-460.0,0.00019444,2]
[374977684,1753486232486,-460.0,0.00019444,2]
[374977687,1753486232495,-460.0,0.00019444,2]
[374977690,1753486232505,-460.0,0.00019444,2]
[374977691,1753486232515,-460.0,0.00019444,2]
[374977693,1753486232527,-323.09743527,0.00019445,2]
[374977695,1753486232537,-460.0,0.00019445,2]
[374977697,1753486232547,-59.06438994,0.00019445,2]
[374977721,1753486238435,-323.21975269,0.00019445,2]
[374977722,1753486238446,-204.8632322,0.00019445,2]
[374977723,1753486238460,-254.98959578,0.00019445,2]
[374977724,1753486238470,-460.0,0.00019445,2]
[374977725,1753486238480,-460.0,0.00019445,2]
[374977726,1753486238491,-460.0,0.00019445,2]
[374977727,1753486238501,-460.0,0.00019445,2]
[374977728,1753486238511,-460.0,0.00019445,2]
[374977729,1753486238522,-460.0,0.00019445,2]
[374977730,1753486238533,-460.0,0.00019445,2]
[374977731,1753486238542,-460.0,0.00019445,2]
[374977732,1753486238553,-460.0,0.00019445,2]
[374977733,1753486238562,-460.0,0.00019445,2]
[374977734,1753486238573,-200.24926051,0.00019446,2]
[374977735,1753486238583,-370.0,0.00019446,2]
[374977736,1753486238593,-460.0,0.00019446,2]
[374977737,1753486238602,-460.0,0.00019446,2]
[374977738,1753486238613,-460.0,0.00019446,2]
[374977739,1753486238623,-460.0,0.00019446,2]
[374977740,1753486238634,-460.0,0.00019446,2]
[374977741,1753486238645,-460.0,0.00019446,2]
[374977742,1753486238654,-460.0,0.00019446,2]
[374977743,1753486238664,-312.18907449,0.00019446,2]
[374977744,1753486238683,-147.81092551,0.00019446,2]
[374977745,1753486238693,-460.0,0.00019446,2]
[374977746,1753486238702,-460.0,0.00019446,2]
[374977747,1753486238713,-460.0,0.00019446,2]
[374977748,1753486238723,-460.0,0.00019446,2]
[374977749,1753486238733,-460.0,0.00019446,2]
[374977750,1753486238743,-460.0,0.00019446,2]
[374977751,1753486238753,-460.0,0.00019446,2]
[374977752,1753486238764,-460.0,0.00019446,2]
[374977753,1753486238773,-460.0,0.00019446,2]
[374977754,1753486238783,-460.0,0.00019446,2]
[374977755,1753486238793,-460.0,0.00019446,2]
[374977756,1753486238803,-460.0,0.00019446,2]
[374977757,1753486238813,-378.3944919,0.00019446,2]
[374977758,1753486238822,-446.69090615,0.00019446,2]
[374977759,1753486238832,-460.0,0.00019446,2]
[374977760,1753486238842,-460.0,0.00019446,2]
[374977761,1753486238852,-460.0,0.00019446,2]
[374977762,1753486238862,-460.0,0.00019446,2]
[374977763,1753486238871,-460.0,0.00019446,2]
[374977764,1753486238881,-460.0,0.00019446,2]
[374977765,1753486238890,-460.0,0.00019446,2]
[374977767,1753486238899,-460.0,0.00019446,2]
[374977769,1753486238908,-474.05,0.00019446,2]
[374977771,1753486238917,-460.0,0.00019451,2]
[374977772,1753486238927,-460.0,0.00019451,2]
[374977773,1753486238937,-460.0,0.00019451,2]
[374977774,1753486238949,-460.0,0.00019451,2]
[374977775,1753486238960,-460.0,0.00019451,2]
[374977776,1753486238970,-460.0,0.00019451,2]
[374977777,1753486238980,-460.0,0.00019451,2]
[374977778,1753486238990,-276.44239105,0.00019473,2]
[374977779,1753486239000,-481.46185182,0.00019473,2]
[374977780,1753486239010,-500.0,0.00019473,2]
[374977781,1753486239020,-500.0,0.00019473,2]
[374977782,1753486239031,-500.0,0.00019473,2]
[374977783,1753486239041,-500.0,0.00019473,2]
[374977784,1753486239051,-460.0,0.00019718,2]
[374977785,1753486239061,-460.0,0.00019718,2]
[374977786,1753486239070,-460.0,0.00019718,2]
[374977787,1753486239080,-460.0,0.00019718,2]
[374977788,1753486239094,-460.0,0.00019718,2]
[374977789,1753486239103,-460.0,0.00019718,2]
[374977790,1753486239114,-460.0,0.00019718,2]
[374977791,1753486239124,-460.0,0.00019719,2]
[374977792,1753486239135,-460.0,0.00019719,2]
[374977793,1753486239144,-460.0,0.00019719,2]
[374977794,1753486239155,-460.0,0.00019719,2]
[374977795,1753486239165,-192.59694934,0.00019719,2]
[374977796,1753486239175,-460.0,0.00019719,2]
[374977797,1753486239186,-460.0,0.00019719,2]
[374977798,1753486239195,-460.0,0.00019719,2]
[374977799,1753486239206,-474.05,0.0001972,2]
[374977800,1753486239215,-460.0,0.00019725,2]
[374977801,1753486239225,-702.84935671,0.00019805,2]
[374977802,1753486239235,-172.73037819,0.00019873,2]
[374977803,1753486239246,-500.0,0.00019873,2]
[374977805,1753486239255,-351.83927804,0.00019873,2]
[374977807,1753486239265,-500.0,0.00019873,2]
[374977809,1753486239275,-434.28458916,0.00019873,2]
[374977811,1753486239284,-500.66691091,0.00019873,2]
[374977813,1753486239294,-500.0,0.00019873,2]
[374977815,1753486239303,-226.16526134,0.00019873,2]
[374977818,1753486239314,-180.62234947,0.00019873,2]
[374977820,1753486239323,-500.0,0.00019873,2]
[374977822,1753486239336,-500.0,0.00019873,2]
[374977824,1753486239346,-500.0,0.00019873,2]
[374977826,1753486239358,-500.0,0.00019873,2]
[374977827,1753486239375,-500.0,0.00019873,2]
[374977829,1753486239387,-515.48631446,0.00019873,2]
[374977832,1753486239397,-538.29265447,0.00019873,2]
[374977833,1753486239407,-500.0,0.00019873,2]
[374977835,1753486239417,-500.03145946,0.00019873,2]
[374977837,1753486239427,-500.0,0.00019873,2]
[374977839,1753486239437,-500.0,0.00019873,2]
[374977841,1753486239448,-250.41005572,0.00019873,2]
[374977843,1753486239459,-500.0,0.00019873,2]
[374977844,1753486239470,-500.0,0.00019873,2]
[374977845,1753486239481,-565.36,0.0001989,3]
[374977846,1753486239491,-282.68,0.0001989,3]